[Event "*** Titled Tuesday Blitz"]
[Site "Chess.com"]
[Date "2019.12.03"]
[Round "6"]
[White "Elyon2000"]
[Black "Dhaydon19"]
[Result "0-1"]
[WhiteElo "2374"]
[BlackElo "2637"]
[TimeControl "180+2"]
[EndTime "14:22:36 PST"]
[Termination "Dhaydon19 won by resignation"]

1. d4 {[%clk 0:03:01.9]} 1... Nf6 {[%clk 0:03:00.2]} 2. c4 {[%clk 0:03:03.1]}
2... b6 {[%clk 0:03:01]} 3. Nc3 {[%clk 0:03:03.6]} 3... Bb7 {[%clk 0:03:02.1]}
4. f3 {[%clk 0:03:04.7]} 4... d5 {[%clk 0:03:02.1]} 5. cxd5 {[%clk 0:03:06.6]}
5... Nxd5 {[%clk 0:03:03.9]} 6. e4 {[%clk 0:03:08.5]} 6... Nxc3 {[%clk
0:03:04.9]} 7. bxc3 {[%clk 0:03:10.4]} 7... e6 {[%clk 0:03:06.3]} 8. Bd3 {[%clk
0:03:11.6]} 8... Nd7 {[%clk 0:03:07.8]} 9. Ne2 {[%clk 0:03:12.9]} 9... Be7
{[%clk 0:03:09.3]} 10. O-O {[%clk 0:03:14.5]} 10... O-O {[%clk 0:03:10.9]} 11.
a4 {[%clk 0:03:15.2]} 11... c5 {[%clk 0:03:11.2]} 12. Be3 {[%clk 0:03:15]} 12...
Rc8 {[%clk 0:03:11.9]} 13. Qd2 {[%clk 0:03:15.9]} 13... f5 {[%clk 0:03:05.9]}
14. Nf4 {[%clk 0:03:11.1]} 14... Rc6 {[%clk 0:02:38.3]} 15. Bb5 {[%clk
0:03:08.6]} 15... Rd6 {[%clk 0:02:37]} 16. e5 {[%clk 0:03:09.9]} 16... Nxe5
{[%clk 0:02:35.1]} 17. Qa2 {[%clk 0:03:11]} 17... cxd4 {[%clk 0:02:28.3]} 18.
cxd4 {[%clk 0:03:10.1]} 18... Nf7 {[%clk 0:02:17.9]} 19. Nxe6 {[%clk 0:03:04.1]}
19... Bd5 {[%clk 0:02:18.1]} 20. Nxd8 {[%clk 0:02:55.3]} 20... Bxa2 {[%clk
0:02:18.4]} 21. Rxa2 {[%clk 0:02:57.2]} 21... Rfxd8 {[%clk 0:02:15.7]} 22. Bc4
{[%clk 0:02:50]} 22... Bf6 {[%clk 0:02:14.8]} 23. Re1 {[%clk 0:02:18.4]} 23...
Kf8 {[%clk 0:02:06.7]} 24. a5 {[%clk 0:02:12.4]} 24... Bxd4 {[%clk 0:02:04.1]}
25. Bxd4 {[%clk 0:02:14.3]} 25... Rxd4 {[%clk 0:02:01.6]} 26. Bxf7 {[%clk
0:01:43.2]} 26... Kxf7 {[%clk 0:02:02.2]} 27. Rb1 {[%clk 0:01:44.2]} 27... Rd1+
{[%clk 0:01:56.7]} 28. Rxd1 {[%clk 0:01:45.4]} 28... Rxd1+ {[%clk 0:01:58.6]}
29. Kf2 {[%clk 0:01:46.9]} 29... b5 {[%clk 0:01:58.8]} 30. Rc2 {[%clk
0:01:43.7]} 30... Ke6 {[%clk 0:01:56.6]} 31. Rc5 {[%clk 0:01:21.9]} 31... Rd5
{[%clk 0:01:52]} 32. Rc7 {[%clk 0:01:22.6]} 32... a6 {[%clk 0:01:51.6]} 33. Rxg7
{[%clk 0:01:20.8]} 33... Rd2+ {[%clk 0:01:46.3]} 34. Ke3 {[%clk 0:01:17.5]}
34... Ra2 {[%clk 0:01:47.2]} 35. Rxh7 {[%clk 0:01:18]} 35... Rxa5 {[%clk
0:01:47.6]} 36. h4 {[%clk 0:01:19.6]} 36... Ra4 {[%clk 0:01:42]} 37. h5 {[%clk
0:01:20.3]} 37... Kf6 {[%clk 0:01:41.3]} 38. g4 {[%clk 0:00:52]} 38... fxg4
{[%clk 0:01:20.2]} 39. fxg4 {[%clk 0:00:53.9]} 39... Rxg4 {[%clk 0:01:07.6]} 40.
Rh6+ {[%clk 0:00:54.3]} 40... Ke5 {[%clk 0:01:00.5]} 41. Rxa6 {[%clk 0:00:56.2]}
41... Rg3+ {[%clk 0:01:01.6]} 42. Kd2 {[%clk 0:00:57.8]} 42... Kd4 {[%clk
0:01:00.8]} 43. h6 {[%clk 0:00:58.6]} 43... Rg2+ {[%clk 0:01:01.4]} 44. Kc1
{[%clk 0:00:59.8]} 44... Rh2 {[%clk 0:01:03.3]} 45. Rg6 {[%clk 0:00:59]} 45...
b4 {[%clk 0:01:03.6]} 46. Kb1 {[%clk 0:00:58.8]} 46... Kc3 {[%clk 0:01:02.4]}
47. Rg3+ {[%clk 0:00:59.7]} 47... Kc4 {[%clk 0:01:03.6]} 48. Rg4+ {[%clk
0:01:00.6]} 48... Kb3 {[%clk 0:01:04.7]} 49. Rg3+ {[%clk 0:01:01.8]} 49... Ka4
{[%clk 0:01:06]} 50. Rg6 {[%clk 0:01:01.9]} 50... Ka3 {[%clk 0:01:02.4]} 51.
Ra6+ {[%clk 0:01:00]} 51... Kb3 {[%clk 0:01:03.4]} 52. Rg6 {[%clk 0:01:01.9]}
52... Rh1+ {[%clk 0:01:03.9]} 0-1

[Event "*** Titled Tuesday Blitz"]
[Site "Chess.com"]
[Date "2019.12.03"]
[Round "6"]
[White "xamax2000"]
[Black "maciek_92"]
[Result "0-1"]
[WhiteElo "2550"]
[BlackElo "2769"]
[TimeControl "180+2"]
[EndTime "14:22:44 PST"]
[Termination "maciek_92 won by resignation"]

1. e4 {[%clk 0:03:01.9]} 1... e5 {[%clk 0:03:00.6]} 2. Nf3 {[%clk 0:02:59.5]}
2... Nc6 {[%clk 0:03:01.2]} 3. Bb5 {[%clk 0:02:58.6]} 3... Nf6 {[%clk
0:03:01.8]} 4. d3 {[%clk 0:02:58.3]} 4... Bc5 {[%clk 0:03:02.5]} 5. Bxc6 {[%clk
0:02:56.4]} 5... dxc6 {[%clk 0:03:03.4]} 6. O-O {[%clk 0:02:58.3]} 6... O-O
{[%clk 0:03:04.5]} 7. Nxe5 {[%clk 0:02:54.4]} 7... Re8 {[%clk 0:02:56.3]} 8. Nf3
{[%clk 0:02:53.1]} 8... Bg4 {[%clk 0:02:56.6]} 9. h3 {[%clk 0:02:54.4]} 9... Bh5
{[%clk 0:02:57.1]} 10. Be3 {[%clk 0:02:50.6]} 10... Qe7 {[%clk 0:02:49.2]} 11.
Nbd2 {[%clk 0:02:50.5]} 11... Rad8 {[%clk 0:02:49.1]} 12. Re1 {[%clk 0:02:50.7]}
12... h6 {[%clk 0:02:34.6]} 13. Qc1 {[%clk 0:02:49.7]} 13... g5 {[%clk
0:02:33.2]} 14. Nh2 {[%clk 0:02:44.3]} 14... Bd6 {[%clk 0:02:25.5]} 15. Ndf1
{[%clk 0:02:44.5]} 15... c5 {[%clk 0:02:17.2]} 16. b3 {[%clk 0:02:44.1]} 16...
Be5 {[%clk 0:02:14.2]} 17. Rb1 {[%clk 0:02:44.4]} 17... Qd6 {[%clk 0:02:15.4]}
18. g4 {[%clk 0:02:32]} 18... Bg6 {[%clk 0:02:15.3]} 19. Kg2 {[%clk 0:02:29.3]}
19... Nd7 {[%clk 0:02:08.7]} 20. Ng3 {[%clk 0:02:26.7]} 20... Bxg3 {[%clk
0:02:07.5]} 21. fxg3 {[%clk 0:02:28.6]} 21... Ne5 {[%clk 0:01:57.9]} 22. a4
{[%clk 0:02:25.5]} 22... f6 {[%clk 0:01:44.5]} 23. Rf1 {[%clk 0:02:23.7]} 23...
Nxd3 {[%clk 0:01:38.8]} 24. cxd3 {[%clk 0:02:22.6]} 24... Qxd3 {[%clk
0:01:40.7]} 25. Kg1 {[%clk 0:02:16.7]} 25... Rxe4 {[%clk 0:01:37.4]} 26. Bf2
{[%clk 0:02:09.2]} 26... c4 {[%clk 0:01:26.2]} 27. bxc4 {[%clk 0:01:58.1]} 27...
Rxc4 {[%clk 0:01:28.1]} 28. Qb2 {[%clk 0:01:55.1]} 28... Be4 {[%clk 0:01:17.8]}
29. Qb3 {[%clk 0:01:48.4]} 29... Qxb3 {[%clk 0:00:59.1]} 30. Rxb3 {[%clk
0:01:47.8]} 30... b6 {[%clk 0:01:01]} 31. a5 {[%clk 0:01:47.8]} 31... Rd2 {[%clk
0:01:00]} 32. axb6 {[%clk 0:01:46.3]} 32... axb6 {[%clk 0:01:00.3]} 33. Re1
{[%clk 0:01:34]} 33... Bd5 {[%clk 0:00:51.2]} 34. Rbe3 {[%clk 0:01:05.4]} 34...
Rcc2 {[%clk 0:00:42.4]} 35. Re8+ {[%clk 0:00:46.7]} 35... Kf7 {[%clk 0:00:35.4]}
36. h4 {[%clk 0:00:21.3]} 36... gxh4 {[%clk 0:00:37.3]} 37. R8e7+ {[%clk
0:00:12.8]} 37... Kg6 {[%clk 0:00:31.9]} 38. Rf1 {[%clk 0:00:10.9]} 38... hxg3
{[%clk 0:00:31.8]} 0-1

[Event "*** Titled Tuesday Blitz"]
[Site "Chess.com"]
[Date "2019.12.03"]
[Round "6"]
[White "boasovietica"]
[Black "politeplayer"]
[Result "1-0"]
[WhiteElo "2394"]
[BlackElo "2228"]
[TimeControl "180+2"]
[EndTime "14:22:49 PST"]
[Termination "boasovietica won by resignation"]

1. Nf3 {[%clk 0:03:01.9]} 1... Nf6 {[%clk 0:02:59.8]} 2. c4 {[%clk 0:03:02]}
2... g6 {[%clk 0:02:59.5]} 3. Nc3 {[%clk 0:02:59.8]} 3... Bg7 {[%clk 0:03:00.8]}
4. g3 {[%clk 0:03:00.8]} 4... O-O {[%clk 0:02:57.7]} 5. Bg2 {[%clk 0:03:02.1]}
5... c5 {[%clk 0:02:56.8]} 6. O-O {[%clk 0:03:03.4]} 6... Nc6 {[%clk 0:02:56.2]}
7. d4 {[%clk 0:03:04.3]} 7... cxd4 {[%clk 0:02:57.6]} 8. Nxd4 {[%clk 0:03:05.1]}
8... Qa5 {[%clk 0:02:59.1]} 9. e3 {[%clk 0:02:55]} 9... a6 {[%clk 0:02:14]} 10.
h3 {[%clk 0:02:28.1]} 10... Ne5 {[%clk 0:02:11.6]} 11. Nb3 {[%clk 0:02:16.4]}
11... Qc7 {[%clk 0:01:49.3]} 12. c5 {[%clk 0:02:13.7]} 12... Rd8 {[%clk
0:01:35.4]} 13. Na4 {[%clk 0:01:58.8]} 13... d6 {[%clk 0:01:27.3]} 14. Nb6
{[%clk 0:01:55]} 14... Rb8 {[%clk 0:01:20.9]} 15. Nxc8 {[%clk 0:01:34.4]} 15...
dxc5 {[%clk 0:01:04]} 16. Nxe7+ {[%clk 0:01:35]} 16... Qxe7 {[%clk 0:01:05.5]}
17. Qc2 {[%clk 0:01:35.9]} 17... b6 {[%clk 0:00:55]} 18. Bd2 {[%clk 0:01:34.2]}
18... h5 {[%clk 0:00:31.7]} 19. Bc3 {[%clk 0:01:31.9]} 19... h4 {[%clk
0:00:31.1]} 20. g4 {[%clk 0:01:31.6]} 20... Nd3 {[%clk 0:00:20.4]} 21. Rad1
{[%clk 0:01:22.1]} 21... c4 {[%clk 0:00:20.5]} 22. Nc1 {[%clk 0:01:22.1]} 22...
Nxc1 {[%clk 0:00:15]} 23. Qxc1 {[%clk 0:01:17.6]} 23... Ne4 {[%clk 0:00:13.6]}
24. Bxg7 {[%clk 0:01:14.5]} 24... Kxg7 {[%clk 0:00:13.5]} 25. Qxc4 {[%clk
0:01:11.7]} 25... Rxd1 {[%clk 0:00:09.3]} 26. Rxd1 {[%clk 0:01:11.3]} 26... Nc5
{[%clk 0:00:07.5]} 27. Qd4+ {[%clk 0:01:07.7]} 27... Qf6 {[%clk 0:00:07.1]} 28.
Qxf6+ {[%clk 0:01:04.2]} 28... Kxf6 {[%clk 0:00:08.1]} 29. b4 {[%clk 0:00:57]}
29... Na4 {[%clk 0:00:08.7]} 30. Rc1 {[%clk 0:00:45.9]} 30... Nb2 {[%clk
0:00:07.3]} 31. Rc6+ {[%clk 0:00:34.4]} 31... Kg7 {[%clk 0:00:06.5]} 32. Bd5
{[%clk 0:00:29.5]} 32... Nd3 {[%clk 0:00:06.7]} 33. a3 {[%clk 0:00:24.5]} 33...
Rd8 {[%clk 0:00:07.1]} 34. e4 {[%clk 0:00:21.5]} 34... Ne5 {[%clk 0:00:07]} 35.
Rxb6 {[%clk 0:00:21.4]} 35... Nf3+ {[%clk 0:00:08.1]} 36. Kg2 {[%clk 0:00:22.6]}
36... Ne1+ {[%clk 0:00:09]} 37. Kf1 {[%clk 0:00:23.8]} 37... Nc2 {[%clk
0:00:09.9]} 38. Rxa6 {[%clk 0:00:22.6]} 1-0

[Event "*** Titled Tuesday Blitz"]
[Site "Chess.com"]
[Date "2019.12.03"]
[Round "6"]
[White "Heineccius"]
[Black "Sergey85Rodchenkov"]
[Result "1/2-1/2"]
[WhiteElo "2643"]
[BlackElo "2473"]
[TimeControl "180+2"]
[EndTime "14:22:50 PST"]
[Termination "Game drawn by repetition"]

1. d4 {[%clk 0:03:01.9]} 1... d5 {[%clk 0:02:58.5]} 2. c4 {[%clk 0:03:02.7]}
2... dxc4 {[%clk 0:02:59.2]} 3. e3 {[%clk 0:03:03.6]} 3... Nf6 {[%clk
0:03:00.2]} 4. Nf3 {[%clk 0:03:04.4]} 4... e6 {[%clk 0:03:02.1]} 5. Bxc4 {[%clk
0:03:05.4]} 5... a6 {[%clk 0:03:03.6]} 6. O-O {[%clk 0:03:06.2]} 6... c5 {[%clk
0:03:05]} 7. Bb3 {[%clk 0:03:06.2]} 7... Nc6 {[%clk 0:03:04.7]} 8. Nc3 {[%clk
0:03:06.2]} 8... Be7 {[%clk 0:03:03.2]} 9. Qe2 {[%clk 0:02:54.6]} 9... O-O
{[%clk 0:02:52]} 10. Rd1 {[%clk 0:02:55.6]} 10... Qc7 {[%clk 0:02:50.5]} 11.
dxc5 {[%clk 0:02:47.1]} 11... Bxc5 {[%clk 0:02:50.7]} 12. h3 {[%clk 0:02:27.4]}
12... b5 {[%clk 0:02:46.8]} 13. e4 {[%clk 0:02:24.5]} 13... Qb6 {[%clk
0:02:14.5]} 14. e5 {[%clk 0:02:13.2]} 14... Nd7 {[%clk 0:02:09.9]} 15. Ne4
{[%clk 0:02:06]} 15... Nd4 {[%clk 0:02:10.6]} 16. Nxd4 {[%clk 0:01:49.7]} 16...
Bxd4 {[%clk 0:02:11.3]} 17. Ng5 {[%clk 0:00:24.3]} 17... Nxe5 {[%clk 0:02:04.3]}
18. Qe4 {[%clk 0:00:21.3]} 18... Bxf2+ {[%clk 0:01:44.3]} 19. Kf1 {[%clk
0:00:22.1]} 19... Ng6 {[%clk 0:01:28.9]} 20. Qxa8 {[%clk 0:00:19.9]} 20... Bb7
{[%clk 0:01:28.1]} 21. Qxf8+ {[%clk 0:00:21.3]} 21... Kxf8 {[%clk 0:01:28.7]}
22. Rd7 {[%clk 0:00:21.5]} 22... Ne5 {[%clk 0:01:08.8]} 23. Rxb7 {[%clk
0:00:21.6]} 23... Qxb7 {[%clk 0:01:08.8]} 24. Kxf2 {[%clk 0:00:22.2]} 24... Nd3+
{[%clk 0:01:08.2]} 25. Kg1 {[%clk 0:00:19.3]} 25... Qb6+ {[%clk 0:01:02.2]} 26.
Kh2 {[%clk 0:00:18.3]} 26... Qd6+ {[%clk 0:00:58.8]} 27. Kh1 {[%clk 0:00:17.7]}
27... Nf2+ {[%clk 0:00:55.7]} 28. Kg1 {[%clk 0:00:17.7]} 28... Qc5 {[%clk
0:00:51.6]} 29. Kh2 {[%clk 0:00:17.7]} 29... Qe5+ {[%clk 0:00:48.5]} 30. Kg1
{[%clk 0:00:13.8]} 30... Qc5 {[%clk 0:00:49.5]} 31. Kh2 {[%clk 0:00:13.5]} 31...
Nd3 {[%clk 0:00:50.2]} 32. Bd2 {[%clk 0:00:13.7]} 32... Qf2 {[%clk 0:00:46.6]}
33. Nf3 {[%clk 0:00:14.8]} 33... Ne5 {[%clk 0:00:45.4]} 34. Nxe5 {[%clk
0:00:15]} 34... Qxd2 {[%clk 0:00:45.9]} 35. Nf3 {[%clk 0:00:16.5]} 35... Qd6+
{[%clk 0:00:46.8]} 36. Kh1 {[%clk 0:00:16.8]} 36... h6 {[%clk 0:00:47.9]} 37.
Rd1 {[%clk 0:00:18.2]} 37... Qb6 {[%clk 0:00:48.6]} 38. Ne5 {[%clk 0:00:18.4]}
38... Qe3 {[%clk 0:00:46.1]} 39. Nf3 {[%clk 0:00:17.9]} 39... g5 {[%clk
0:00:45.7]} 40. Re1 {[%clk 0:00:19.1]} 40... Qf2 {[%clk 0:00:45.3]} 41. Rd1
{[%clk 0:00:18.4]} 41... Qxb2 {[%clk 0:00:43.2]} 42. Rd7 {[%clk 0:00:19.1]}
42... Qc1+ {[%clk 0:00:44]} 43. Kh2 {[%clk 0:00:19.4]} 43... Qf4+ {[%clk
0:00:44.9]} 44. Kg1 {[%clk 0:00:20.6]} 44... Qe3+ {[%clk 0:00:44.4]} 45. Kh2
{[%clk 0:00:21.1]} 45... Qf4+ {[%clk 0:00:45.1]} 46. Kg1 {[%clk 0:00:21.9]}
46... Qe3+ {[%clk 0:00:45.1]} 47. Kh2 {[%clk 0:00:23.2]} 47... Qf4+ {[%clk
0:00:46.3]} 1/2-1/2

[Event "*** Titled Tuesday Blitz"]
[Site "Chess.com"]
[Date "2019.12.03"]
[Round "6"]
[White "iLuusions"]
[Black "DonBroca"]
[Result "1-0"]
[WhiteElo "2640"]
[BlackElo "2095"]
[TimeControl "180+2"]
[EndTime "14:23:03 PST"]
[Termination "iLuusions won by resignation"]

1. d4 {[%clk 0:03:01.9]} 1... c5 {[%clk 0:02:58.5]} 2. d5 {[%clk 0:03:02.2]}
2... d6 {[%clk 0:02:54.4]} 3. c4 {[%clk 0:03:02.8]} 3... Nd7 {[%clk 0:02:54]} 4.
Nc3 {[%clk 0:03:03.7]} 4... Ngf6 {[%clk 0:02:54.9]} 5. e4 {[%clk 0:03:03.8]}
5... g6 {[%clk 0:02:55.1]} 6. h3 {[%clk 0:02:40.6]} 6... Bg7 {[%clk 0:02:55.7]}
7. Nf3 {[%clk 0:02:40.7]} 7... a6 {[%clk 0:02:49.4]} 8. Be2 {[%clk 0:02:40.8]}
8... Rb8 {[%clk 0:02:49.9]} 9. O-O {[%clk 0:02:34.8]} 9... O-O {[%clk
0:02:50.4]} 10. Be3 {[%clk 0:02:32.9]} 10... Re8 {[%clk 0:02:44.3]} 11. Qc2
{[%clk 0:02:31.7]} 11... Nf8 {[%clk 0:02:43.2]} 12. e5 {[%clk 0:02:13.4]} 12...
Bf5 {[%clk 0:02:37.2]} 13. Qd2 {[%clk 0:01:55.8]} 13... dxe5 {[%clk 0:02:31.4]}
14. Nxe5 {[%clk 0:01:56.6]} 14... Ne4 {[%clk 0:02:30.3]} 15. Nxe4 {[%clk
0:01:56.2]} 15... Bxe5 {[%clk 0:02:24.9]} 16. Nxc5 {[%clk 0:01:54.7]} 16... Qd6
{[%clk 0:02:13.7]} 17. Nd3 {[%clk 0:01:53.9]} 17... Bh2+ {[%clk 0:02:05]} 18.
Kh1 {[%clk 0:01:53.6]} 18... Nd7 {[%clk 0:01:42.2]} 19. Rad1 {[%clk 0:01:43]}
19... Rbc8 {[%clk 0:01:23.4]} 20. b3 {[%clk 0:01:23.6]} 20... Ne5 {[%clk
0:01:07.9]} 21. Nf4 {[%clk 0:01:21.9]} 21... Bxf4 {[%clk 0:01:04.1]} 22. Bxf4
{[%clk 0:01:23.8]} 22... Qf6 {[%clk 0:01:02.1]} 23. Be3 {[%clk 0:01:03.3]} 23...
Red8 {[%clk 0:00:41.7]} 24. Bd4 {[%clk 0:01:00.3]} 24... Qd6 {[%clk 0:00:40.6]}
25. Qh6 {[%clk 0:00:55.7]} 25... f6 {[%clk 0:00:36.1]} 26. Qe3 {[%clk
0:00:41.3]} 26... h5 {[%clk 0:00:30.7]} 27. Bxe5 {[%clk 0:00:39]} 27... fxe5
{[%clk 0:00:29.7]} 28. Bf3 {[%clk 0:00:40.3]} 28... Rf8 {[%clk 0:00:29.3]} 29.
Rfe1 {[%clk 0:00:40.6]} 29... b5 {[%clk 0:00:25.4]} 30. Rc1 {[%clk 0:00:33.4]}
30... bxc4 {[%clk 0:00:23.5]} 31. bxc4 {[%clk 0:00:35.3]} 31... Kh7 {[%clk
0:00:19.2]} 32. c5 {[%clk 0:00:34.6]} 32... Qd8 {[%clk 0:00:17.8]} 33. Qxe5
{[%clk 0:00:35.5]} 33... Bxh3 {[%clk 0:00:15.5]} 34. Qxe7+ {[%clk 0:00:36.5]}
34... Qxe7 {[%clk 0:00:16.2]} 35. Rxe7+ {[%clk 0:00:38.4]} 35... Kh8 {[%clk
0:00:16.2]} 36. d6 {[%clk 0:00:38.8]} 36... Bf5 {[%clk 0:00:10.5]} 37. c6 {[%clk
0:00:34.6]} 37... Rfd8 {[%clk 0:00:10.8]} 38. d7 {[%clk 0:00:29]} 38... Bxd7
{[%clk 0:00:11.6]} 39. Rxd7 {[%clk 0:00:29.4]} 39... Rxd7 {[%clk 0:00:12.6]} 40.
cxd7 {[%clk 0:00:31.3]} 40... Rxc1+ {[%clk 0:00:13.6]} 41. Kh2 {[%clk
0:00:32.7]} 1-0

[Event "*** Titled Tuesday Blitz"]
[Site "Chess.com"]
[Date "2019.12.03"]
[Round "6"]
[White "pedromartinez91"]
[Black "DeviatkinAndrey"]
[Result "0-1"]
[WhiteElo "2517"]
[BlackElo "2700"]
[TimeControl "180+2"]
[EndTime "14:23:11 PST"]
[Termination "DeviatkinAndrey won by resignation"]

1. Nf3 {[%clk 0:03:01.9]} 1... d5 {[%clk 0:03:00.1]} 2. g3 {[%clk 0:03:01.6]}
2... c6 {[%clk 0:03:01.4]} 3. Bg2 {[%clk 0:03:01.9]} 3... Bf5 {[%clk 0:03:02.4]}
4. O-O {[%clk 0:02:52.4]} 4... e6 {[%clk 0:03:02.6]} 5. c4 {[%clk 0:02:49.6]}
5... Nd7 {[%clk 0:03:02.5]} 6. d3 {[%clk 0:02:31.6]} 6... Ngf6 {[%clk
0:02:58.7]} 7. Nc3 {[%clk 0:02:21.6]} 7... h6 {[%clk 0:02:52.8]} 8. cxd5 {[%clk
0:02:19.3]} 8... cxd5 {[%clk 0:02:41.4]} 9. Bf4 {[%clk 0:02:07.1]} 9... a6
{[%clk 0:02:08.8]} 10. e4 {[%clk 0:01:44.1]} 10... dxe4 {[%clk 0:02:02]} 11.
dxe4 {[%clk 0:01:43.3]} 11... Nxe4 {[%clk 0:01:46.9]} 12. Nd4 {[%clk 0:01:43.2]}
12... Nxc3 {[%clk 0:00:53.2]} 13. bxc3 {[%clk 0:01:45.1]} 13... Nc5 {[%clk
0:00:54.4]} 14. Nxf5 {[%clk 0:01:27.4]} 14... exf5 {[%clk 0:00:52.8]} 15. Re1+
{[%clk 0:01:14.5]} 15... Be7 {[%clk 0:00:53.5]} 16. Qd5 {[%clk 0:00:17.8]} 16...
Qxd5 {[%clk 0:00:39]} 17. Bxd5 {[%clk 0:00:19.7]} 17... O-O-O {[%clk 0:00:23.2]}
18. Bxf7 {[%clk 0:00:16.4]} 18... Bd6 {[%clk 0:00:22.1]} 19. Be3 {[%clk
0:00:09]} 19... Rhf8 {[%clk 0:00:22.3]} 20. Bc4 {[%clk 0:00:05.3]} 20... Kc7
{[%clk 0:00:13.6]} 21. Bd4 {[%clk 0:00:05.8]} 21... Rd7 {[%clk 0:00:13.9]} 22.
Rad1 {[%clk 0:00:04.3]} 22... g6 {[%clk 0:00:11.8]} 23. f3 {[%clk 0:00:05.1]}
23... b5 {[%clk 0:00:08.8]} 24. Bf1 {[%clk 0:00:03.4]} 24... Re7 {[%clk
0:00:06.6]} 25. Kg2 {[%clk 0:00:04.6]} 25... Rfe8 {[%clk 0:00:07.4]} 26. Rxe7+
{[%clk 0:00:05.5]} 26... Rxe7 {[%clk 0:00:08.8]} 27. h4 {[%clk 0:00:07.4]} 27...
h5 {[%clk 0:00:09.8]} 28. f4 {[%clk 0:00:08.1]} 28... Ne4 {[%clk 0:00:10]} 29.
Bd3 {[%clk 0:00:09.2]} 29... Rd7 {[%clk 0:00:08.6]} 30. Kf3 {[%clk 0:00:10]}
30... Re7 {[%clk 0:00:08.8]} 31. Re1 {[%clk 0:00:10.3]} 31... Nd2+ {[%clk
0:00:07.9]} 32. Kf2 {[%clk 0:00:09.7]} 32... Rxe1 {[%clk 0:00:08.9]} 33. Kxe1
{[%clk 0:00:11.6]} 33... Nc4 {[%clk 0:00:06.3]} 34. a4 {[%clk 0:00:08.8]} 34...
Nb2 {[%clk 0:00:06.7]} 35. axb5 {[%clk 0:00:04.9]} 35... Nxd3+ {[%clk
0:00:07.3]} 36. Kd2 {[%clk 0:00:06.4]} 36... Nc5 {[%clk 0:00:08.1]} 37. bxa6
{[%clk 0:00:04.4]} 37... Nxa6 {[%clk 0:00:09]} 38. Kd3 {[%clk 0:00:06.3]} 38...
Kc6 {[%clk 0:00:09.4]} 39. Kc4 {[%clk 0:00:08]} 39... Nc5 {[%clk 0:00:10.4]} 40.
Kb4 {[%clk 0:00:07.5]} 40... Ne4+ {[%clk 0:00:11.3]} 0-1

[Event "*** Titled Tuesday Blitz"]
[Site "Chess.com"]
[Date "2019.12.03"]
[Round "6"]
[White "WPWPWP-2015"]
[Black "IMTominho"]
[Result "0-1"]
[WhiteElo "2537"]
[BlackElo "2713"]
[TimeControl "180+2"]
[EndTime "14:23:14 PST"]
[Termination "IMTominho won on time"]

1. d4 {[%clk 0:03:01.9]} 1... d5 {[%clk 0:02:59]} 2. Nf3 {[%clk 0:03:02.1]} 2...
Nf6 {[%clk 0:02:59.6]} 3. c4 {[%clk 0:03:02.9]} 3... c6 {[%clk 0:03:00.6]} 4.
Nc3 {[%clk 0:03:03.6]} 4... a6 {[%clk 0:02:59.7]} 5. cxd5 {[%clk 0:03:02.9]}
5... cxd5 {[%clk 0:03:01.6]} 6. Bf4 {[%clk 0:03:03]} 6... Nc6 {[%clk 0:03:01.8]}
7. e3 {[%clk 0:03:03.9]} 7... Qb6 {[%clk 0:03:02.8]} 8. Qd2 {[%clk 0:02:54.2]}
8... Ne4 {[%clk 0:02:54.9]} 9. Nxd5 {[%clk 0:02:41.3]} 9... Qd8 {[%clk
0:02:32.3]} 10. Nc7+ {[%clk 0:02:41.2]} 10... Qxc7 {[%clk 0:02:18.6]} 11. Bxc7
{[%clk 0:02:40.5]} 11... Nxd2 {[%clk 0:02:19.8]} 12. Nxd2 {[%clk 0:02:40.4]}
12... Be6 {[%clk 0:02:17]} 13. Bd3 {[%clk 0:02:27.7]} 13... Nb4 {[%clk
0:02:13.8]} 14. Be4 {[%clk 0:02:26.3]} 14... f5 {[%clk 0:02:14.3]} 15. Bxb7
{[%clk 0:02:20.6]} 15... Ra7 {[%clk 0:02:14.6]} 16. Bf3 {[%clk 0:01:40.3]} 16...
Rxc7 {[%clk 0:02:05.9]} 17. Ke2 {[%clk 0:01:37.5]} 17... g5 {[%clk 0:01:42.9]}
18. a3 {[%clk 0:01:09.9]} 18... Nc2 {[%clk 0:01:32.7]} 19. Rac1 {[%clk
0:01:00.7]} 19... g4 {[%clk 0:01:33.5]} 20. Ba8 {[%clk 0:01:00.8]} 20... Bh6
{[%clk 0:01:27.7]} 21. d5 {[%clk 0:00:55.4]} 21... Bd7 {[%clk 0:01:17.6]} 22.
Bc6 {[%clk 0:00:50.3]} 22... Bxc6 {[%clk 0:01:14.7]} 23. dxc6 {[%clk 0:00:43.9]}
23... Rxc6 {[%clk 0:01:16.6]} 24. Kd3 {[%clk 0:00:44.6]} 24... Kf7 {[%clk
0:01:11.4]} 25. Nc4 {[%clk 0:00:41.2]} 25... Rd8+ {[%clk 0:01:08.1]} 26. Kc3
{[%clk 0:00:32.3]} 26... Bg7+ {[%clk 0:01:08.4]} 27. Kb3 {[%clk 0:00:28.7]}
27... Rb8+ {[%clk 0:01:08.3]} 28. Kxc2 {[%clk 0:00:18.9]} 28... Rxc4+ {[%clk
0:01:07.2]} 29. Kd3 {[%clk 0:00:20.5]} 29... Rxc1 {[%clk 0:01:07.8]} 30. Rxc1
{[%clk 0:00:21.2]} 30... Rxb2 {[%clk 0:01:09.7]} 31. Rc6 {[%clk 0:00:21.3]}
31... Rb3+ {[%clk 0:01:07]} 32. Ke2 {[%clk 0:00:20]} 32... Rxa3 {[%clk
0:01:08.1]} 33. h3 {[%clk 0:00:20.4]} 33... h5 {[%clk 0:01:08.2]} 34. hxg4
{[%clk 0:00:20.6]} 34... hxg4 {[%clk 0:01:10.1]} 35. e4 {[%clk 0:00:20]} 35...
f4 {[%clk 0:01:08.1]} 36. Rc5 {[%clk 0:00:17.9]} 36... Ra2+ {[%clk 0:01:08.4]}
37. Ke1 {[%clk 0:00:17.8]} 37... e6 {[%clk 0:01:05.4]} 38. e5 {[%clk 0:00:08.8]}
38... g3 {[%clk 0:01:00.6]} 39. fxg3 {[%clk 0:00:08.6]} 39... fxg3 {[%clk
0:01:02.5]} 40. Rc7+ {[%clk 0:00:05.7]} 40... Kg6 {[%clk 0:01:02.7]} 41. Re7
{[%clk 0:00:05.4]} 41... Bxe5 {[%clk 0:01:01.2]} 42. Rxe6+ {[%clk 0:00:06.2]}
42... Kf5 {[%clk 0:01:02.8]} 43. Rh6 {[%clk 0:00:05.9]} 43... a5 {[%clk
0:01:03.2]} 44. Kf1 {[%clk 0:00:04.2]} 44... a4 {[%clk 0:01:03.6]} 45. Rh5+
{[%clk 0:00:04.6]} 45... Ke4 {[%clk 0:01:04.5]} 46. Rg5 {[%clk 0:00:04]} 46...
a3 {[%clk 0:01:05]} 47. Ke1 {[%clk 0:00:02.7]} 47... Rxg2 {[%clk 0:01:04.5]} 48.
Rg4+ {[%clk 0:00:03.3]} 48... Bf4 {[%clk 0:01:05.3]} 49. Rg8 {[%clk 0:00:03]}
49... a2 {[%clk 0:00:49.8]} 0-1